[Event "January 2 Late 2024"]
[Site "https://www.chess.com"]
[Date "2024.01.02"]
[Round "10"]
[White "Filipovic, Slobodan J"]
[Black "Delgado Kuffo, Andres"]
[Result "1-0"]
[Board "124"]
[TimeControl "180+1"]
[WhiteFideId "939633"]
[BlackFideId "3600475"]
[WhiteElo "2402"]
[BlackElo "2259"]
[WhiteTeam "SRB"]
[BlackTeam "ECU"]
[WhiteClock "0:00:21"]
[BlackClock "0:00:00"]

1. e4 {[%clk 0:03:00]}  e6 {[%clk 0:02:59]} 2. Qe2 {[%clk 0:02:57]}  c5 {[%clk 0:02:56]} 3. g3 {[%clk 0:02:54]}  Nc6 {[%clk 0:02:53]} 4. c3 {[%clk 0:02:52]}  g6 {[%clk 0:02:53]} 5. Bg2 {[%clk 0:02:52]}  Bg7 {[%clk 0:02:53]} 6. Nf3 {[%clk 0:02:52]}  Nge7 {[%clk 0:02:53]} 7. O-O {[%clk 0:02:51]}  O-O {[%clk 0:02:53]} 8. Rd1 {[%clk 0:02:51]}  b5 {[%clk 0:02:41]} 9. Qxb5 {[%clk 0:02:45]}  d6 {[%clk 0:02:39]} 10. Qe2 {[%clk 0:02:41]}  a5 {[%clk 0:02:36]} 11. a4 {[%clk 0:02:39]}  Ba6 {[%clk 0:02:35]} 12. d3 {[%clk 0:02:39]}  d5 {[%clk 0:02:19]} 13. Na3 {[%clk 0:02:18]}  dxe4 {[%clk 0:02:15]} 14. Qxe4 {[%clk 0:02:18]}  Rb8 {[%clk 0:01:39]} 15. Nc4 {[%clk 0:02:07]}  Qd5 {[%clk 0:01:35]} 16. Qxd5 {[%clk 0:01:16]}  exd5 {[%clk 0:01:32]} 17. Na3 {[%clk 0:01:11]}  Rfd8 {[%clk 0:01:26]} 18. Ra2 {[%clk 0:01:07]}  Rb3 {[%clk 0:01:09]} 19. Nd2 {[%clk 0:01:02]}  Rb6 {[%clk 0:01:02]} 20. Bf1 {[%clk 0:00:57]}  Bh6 {[%clk 0:00:45]} 21. Nf3 {[%clk 0:00:53]}  Bxc1 {[%clk 0:00:38]} 22. Rxc1 {[%clk 0:00:54]}  Rdb8 {[%clk 0:00:38]} 23. Rc2 {[%clk 0:00:53]}  f6 {[%clk 0:00:34]} 24. Be2 {[%clk 0:00:51]}  g5 {[%clk 0:00:31]} 25. h3 {[%clk 0:00:50]}  h5 {[%clk 0:00:30]} 26. Nd2 {[%clk 0:00:48]}  Ne5 {[%clk 0:00:29]} 27. c4 {[%clk 0:00:45]}  N7c6 {[%clk 0:00:25]} 28. b3 {[%clk 0:00:33]}  Nd4 {[%clk 0:00:20]} 29. Kf1 {[%clk 0:00:29]}  Nxc2 {[%clk 0:00:19]} 30. Rxc2 {[%clk 0:00:27]}  Nc6 {[%clk 0:00:19]} 31. Bxh5 {[%clk 0:00:26]}  Nd4 {[%clk 0:00:17]} 32. Rb2 {[%clk 0:00:26]}  Nxb3 {[%clk 0:00:17]} 33. Nxb3 {[%clk 0:00:24]}  Rxb3 {[%clk 0:00:17]} 34. Rxb3 {[%clk 0:00:24]}  Rxb3 {[%clk 0:00:17]} 35. Nb5 {[%clk 0:00:24]}  Rxd3 {[%clk 0:00:15]} 36. Be2 {[%clk 0:00:21]}  Rd2 {[%clk 0:00:15]} 37. cxd5 {[%clk 0:00:21]}  Rxd5 {[%clk 0:00:14]} 38. Bc4 {[%clk 0:00:20]}  Bb7 {[%clk 0:00:07]} 39. Nc7 {[%clk 0:00:20]}  Kg7 {[%clk 0:00:06]} 40. Nxd5 {[%clk 0:00:21]}  f5 {[%clk 0:00:05]} 41. f4 {[%clk 0:00:20]}  gxf4 {[%clk 0:00:03]} 42. gxf4 {[%clk 0:00:21]}  Kg6 {[%clk 0:00:00]} 43. Nc3 {[%clk 0:00:21]} 1-0

[Event "January 2 Late 2024"]
[Site "https://www.chess.com"]
[Date "2024.01.02"]
[Round "10"]
[White "Clawitter, Craig"]
[Black "Novak, Ratko"]
[Result "0-1"]
[Board "127"]
[TimeControl "180+1"]
[WhiteFideId "2023105"]
[BlackFideId "14511827"]
[WhiteElo "2234"]
[BlackElo "2358"]
[WhiteTeam "USA"]
[BlackTeam "CRO"]
[WhiteClock "0:00:00"]
[BlackClock "0:01:09"]

1. e4 {[%clk 0:03:00]}  d5 {[%clk 0:02:59]} 2. exd5 {[%clk 0:02:59]}  c6 {[%clk 0:02:59]} 3. dxc6 {[%clk 0:02:54]}  Nxc6 {[%clk 0:03:00]} 4. Bb5 {[%clk 0:02:41]}  Qd5 {[%clk 0:02:58]} 5. Nc3 {[%clk 0:02:29]}  Qxg2 {[%clk 0:02:56]} 6. Qf3 {[%clk 0:02:29]}  Qxf3 {[%clk 0:02:55]} 7. Nxf3 {[%clk 0:02:29]}  Bd7 {[%clk 0:02:55]} 8. d4 {[%clk 0:02:16]}  a6 {[%clk 0:02:54]} 9. Ba4 {[%clk 0:01:58]}  e6 {[%clk 0:02:36]} 10. Be3 {[%clk 0:01:37]}  Bb4 {[%clk 0:02:34]} 11. O-O-O {[%clk 0:01:34]}  Bxc3 {[%clk 0:02:33]} 12. bxc3 {[%clk 0:01:34]}  Nf6 {[%clk 0:02:33]} 13. Rhg1 {[%clk 0:01:28]}  g6 {[%clk 0:02:29]} 14. Bb3 {[%clk 0:01:11]}  b5 {[%clk 0:02:24]} 15. d5 {[%clk 0:01:10]}  exd5 {[%clk 0:02:22]} 16. Rge1 {[%clk 0:00:21]}  O-O-O {[%clk 0:02:00]} 17. Nd4 {[%clk 0:00:13]}  Ne4 {[%clk 0:01:57]} 18. Bxd5 {[%clk 0:00:11]}  Nxc3 {[%clk 0:01:53]} 19. Bxc6 {[%clk 0:00:10]}  Bxc6 {[%clk 0:01:49]} 20. Nxc6 {[%clk 0:00:10]}  Rxd1+ {[%clk 0:01:50]} 21. Rxd1 {[%clk 0:00:10]}  Nxd1 {[%clk 0:01:50]} 22. Kxd1 {[%clk 0:00:10]}  Kc7 {[%clk 0:01:49]} 23. Nb4 {[%clk 0:00:09]}  a5 {[%clk 0:01:47]} 24. Nd3 {[%clk 0:00:06]}  Rd8 {[%clk 0:01:43]} 25. Ke2 {[%clk 0:00:06]}  f6 {[%clk 0:01:39]} 26. Bf4+ {[%clk 0:00:06]}  Kc6 {[%clk 0:01:38]} 27. Ke3 {[%clk 0:00:06]}  Kd5 {[%clk 0:01:36]} 28. Bg3 {[%clk 0:00:06]}  Rc8 {[%clk 0:01:34]} 29. Kd2 {[%clk 0:00:06]}  g5 {[%clk 0:01:33]} 30. f3 {[%clk 0:00:06]}  h5 {[%clk 0:01:33]} 31. h4 {[%clk 0:00:06]}  Rc4 {[%clk 0:01:25]} 32. hxg5 {[%clk 0:00:05]}  fxg5 {[%clk 0:01:25]} 33. Ne5 {[%clk 0:00:05]}  Ra4 {[%clk 0:01:23]} 34. Nf7 {[%clk 0:00:05]}  g4 {[%clk 0:01:16]} 35. f4 {[%clk 0:00:03]}  Rxa2 {[%clk 0:01:15]} 36. Ng5 {[%clk 0:00:02]}  Ra3 {[%clk 0:01:10]} 37. Bh4 {[%clk 0:00:00]}  g3 {[%clk 0:01:09]} 0-1

[Event "January 2 Late 2024"]
[Site "https://www.chess.com"]
[Date "2024.01.02"]
[Round "10"]
[White "Poddubnyi, Viktor"]
[Black "Keller, Peter"]
[Result "1-0"]
[Board "130"]
[TimeControl "180+1"]
[WhiteFideId "4141989"]
[BlackFideId "1272105"]
[WhiteElo "2326"]
[BlackElo "2215"]
[WhiteTeam "RUS"]
[BlackTeam "GER"]
[WhiteClock "0:00:48"]
[BlackClock "0:00:06"]

1. e4 {[%clk 0:03:00]}  e5 {[%clk 0:02:58]} 2. f4 {[%clk 0:02:59]}  d5 {[%clk 0:02:58]} 3. exd5 {[%clk 0:02:59]}  exf4 {[%clk 0:02:58]} 4. Nf3 {[%clk 0:02:58]}  Nf6 {[%clk 0:02:56]} 5. c4 {[%clk 0:02:58]}  c6 {[%clk 0:02:55]} 6. d4 {[%clk 0:02:58]}  Bb4+ {[%clk 0:02:45]} 7. Nc3 {[%clk 0:02:57]}  cxd5 {[%clk 0:02:36]} 8. Bxf4 {[%clk 0:02:57]}  O-O {[%clk 0:02:36]} 9. Be2 {[%clk 0:02:57]}  dxc4 {[%clk 0:02:24]} 10. Bxc4 {[%clk 0:02:56]}  Re8+ {[%clk 0:02:22]} 11. Ne5 {[%clk 0:02:57]}  Be6 {[%clk 0:01:51]} 12. O-O {[%clk 0:02:56]}  Bxc4 {[%clk 0:01:48]} 13. Nxc4 {[%clk 0:02:57]}  Nc6 {[%clk 0:01:48]} 14. a3 {[%clk 0:02:57]}  Bxc3 {[%clk 0:01:33]} 15. bxc3 {[%clk 0:02:56]}  Nd5 {[%clk 0:01:29]} 16. Bd2 {[%clk 0:02:54]}  b5 {[%clk 0:01:26]} 17. Nb2 {[%clk 0:02:45]}  Na5 {[%clk 0:01:02]} 18. Qf3 {[%clk 0:02:39]}  Qd7 {[%clk 0:00:59]} 19. Nd3 {[%clk 0:02:26]}  Nc4 {[%clk 0:00:54]} 20. Ra2 {[%clk 0:01:52]}  Rad8 {[%clk 0:00:44]} 21. Nc5 {[%clk 0:01:45]}  Qe7 {[%clk 0:00:33]} 22. Bc1 {[%clk 0:01:44]}  f6 {[%clk 0:00:29]} 23. a4 {[%clk 0:01:36]}  b4 {[%clk 0:00:20]} 24. Qd3 {[%clk 0:01:11]}  Nde3 {[%clk 0:00:19]} 25. Re1 {[%clk 0:01:08]}  Qxc5 {[%clk 0:00:17]} 26. Bxe3 {[%clk 0:01:01]}  b3 {[%clk 0:00:15]} 27. Rae2 {[%clk 0:00:58]}  b2 {[%clk 0:00:11]} 28. Qc2 {[%clk 0:00:51]}  Nxe3 {[%clk 0:00:11]} 29. dxc5 {[%clk 0:00:47]}  Nxc2 {[%clk 0:00:10]} 30. Rxe8+ {[%clk 0:00:47]}  Rxe8 {[%clk 0:00:09]} 31. Rxe8+ {[%clk 0:00:48]}  Kf7 {[%clk 0:00:06]} 32. Rb8 {[%clk 0:00:48]} 1-0

[Event "January 2 Late 2024"]
[Site "https://www.chess.com"]
[Date "2024.01.02"]
[Round "10"]
[White "Korol, Dimitry"]
[Black "MiguelEduardoGB"]
[Result "1-0"]
[Board "131"]
[TimeControl "180+1"]
[WhiteFideId "14108003"]
[WhiteElo "2321"]
[BlackElo "2200"]
[WhiteTeam "UKR"]
[WhiteClock "0:00:07"]
[BlackClock "0:00:33"]

1. d4 {[%clk 0:03:00]}  d5 {[%clk 0:02:58]} 2. c4 {[%clk 0:03:01]}  Nc6 {[%clk 0:02:53]} 3. Nc3 {[%clk 0:03:01]}  Nf6 {[%clk 0:02:50]} 4. cxd5 {[%clk 0:02:59]}  Nxd5 {[%clk 0:02:50]} 5. e4 {[%clk 0:02:59]}  Nxc3 {[%clk 0:02:48]} 6. bxc3 {[%clk 0:03:00]}  e5 {[%clk 0:02:39]} 7. d5 {[%clk 0:02:31]}  Ne7 {[%clk 0:02:37]} 8. Nf3 {[%clk 0:02:27]}  Ng6 {[%clk 0:02:37]} 9. Bb5+ {[%clk 0:02:15]}  Bd7 {[%clk 0:02:33]} 10. Qb3 {[%clk 0:02:03]}  Rb8 {[%clk 0:02:23]} 11. O-O {[%clk 0:02:01]}  Be7 {[%clk 0:02:19]} 12. Be3 {[%clk 0:01:58]}  a6 {[%clk 0:02:17]} 13. Bxd7+ {[%clk 0:01:58]}  Qxd7 {[%clk 0:02:17]} 14. Ba7 {[%clk 0:01:50]}  Ra8 {[%clk 0:02:09]} 15. Qxb7 {[%clk 0:01:49]}  O-O {[%clk 0:02:09]} 16. Rab1 {[%clk 0:01:22]}  Qg4 {[%clk 0:02:08]} 17. h3 {[%clk 0:00:39]}  Qf4 {[%clk 0:02:02]} 18. Qxc7 {[%clk 0:00:29]}  Qxe4 {[%clk 0:01:54]} 19. d6 {[%clk 0:00:15]}  Bd8 {[%clk 0:01:54]} 20. Qb7 {[%clk 0:00:14]}  Qxb7 {[%clk 0:01:43]} 21. Rxb7 {[%clk 0:00:15]}  Ba5 {[%clk 0:01:31]} 22. c4 {[%clk 0:00:15]}  e4 {[%clk 0:01:31]} 23. Nd4 {[%clk 0:00:14]}  Ne5 {[%clk 0:01:25]} 24. c5 {[%clk 0:00:13]}  Bc3 {[%clk 0:01:19]} 25. Nf5 {[%clk 0:00:12]}  Nc6 {[%clk 0:01:19]} 26. Bb6 {[%clk 0:00:11]}  Bf6 {[%clk 0:01:13]} 27. Rc1 {[%clk 0:00:10]}  g6 {[%clk 0:00:59]} 28. Ne3 {[%clk 0:00:10]}  Rac8 {[%clk 0:00:52]} 29. Nd5 {[%clk 0:00:10]}  Bg5 {[%clk 0:00:52]} 30. Re1 {[%clk 0:00:09]}  f5 {[%clk 0:00:51]} 31. g3 {[%clk 0:00:09]}  Nd4 {[%clk 0:00:45]} 32. Kg2 {[%clk 0:00:08]}  Nf3 {[%clk 0:00:45]} 33. Rd1 {[%clk 0:00:08]}  Ne5 {[%clk 0:00:44]} 34. h4 {[%clk 0:00:08]}  Bd8 {[%clk 0:00:40]} 35. Bxd8 {[%clk 0:00:06]}  Rfxd8 {[%clk 0:00:40]} 36. Ne7+ {[%clk 0:00:05]}  Kf8 {[%clk 0:00:40]} 37. Nxc8 {[%clk 0:00:06]}  Rxc8 {[%clk 0:00:40]} 38. d7 {[%clk 0:00:05]}  Rd8 {[%clk 0:00:40]} 39. Rc7 {[%clk 0:00:05]}  Ke7 {[%clk 0:00:40]} 40. c6 {[%clk 0:00:05]}  e3 {[%clk 0:00:39]} 41. fxe3 {[%clk 0:00:04]}  Ng4 {[%clk 0:00:40]} 42. Kf3 {[%clk 0:00:03]}  Ne5+ {[%clk 0:00:40]} 43. Ke2 {[%clk 0:00:03]}  Ng4 {[%clk 0:00:35]} 44. Rc8 {[%clk 0:00:03]}  Nf6 {[%clk 0:00:32]} 45. Rxd8 {[%clk 0:00:03]}  Kxd8 {[%clk 0:00:33]} 46. c7+ {[%clk 0:00:03]}  Kxc7 {[%clk 0:00:33]} 47. d8=Q+ {[%clk 0:00:04]}  Kc6 {[%clk 0:00:33]} 48. Qxf6+ {[%clk 0:00:04]}  Kb5 {[%clk 0:00:33]} 49. Qd4 {[%clk 0:00:05]}  Ka5 {[%clk 0:00:33]} 50. Rc1 {[%clk 0:00:05]}  Kb5 {[%clk 0:00:34]} 51. Rc5+ {[%clk 0:00:05]}  Kb6 {[%clk 0:00:35]} 52. Qd6+ {[%clk 0:00:06]}  Kb7 {[%clk 0:00:33]} 53. Rc7+ {[%clk 0:00:07]} 1-0

[Event "January 2 Late 2024"]
[Site "https://www.chess.com"]
[Date "2024.01.02"]
[Round "10"]
[White "Alves Campelo, Danilo Cesar De L"]
[Black "Kujawski, Adam"]
[Result "1-0"]
[Board "133"]
[TimeControl "180+1"]
[WhiteFideId "2123657"]
[BlackFideId "1100920"]
[WhiteElo "1965"]
[BlackElo "2310"]
[WhiteTeam "BRA"]
[BlackTeam "POL"]
[WhiteClock "0:00:06"]
[BlackClock "0:00:00"]

1. e4 {[%clk 0:03:00]}  e5 {[%clk 0:02:53]} 2. Nf3 {[%clk 0:03:00]}  Nc6 {[%clk 0:02:53]} 3. Bb5 {[%clk 0:03:01]}  a6 {[%clk 0:02:53]} 4. Ba4 {[%clk 0:03:01]}  Nf6 {[%clk 0:02:52]} 5. O-O {[%clk 0:03:00]}  Be7 {[%clk 0:02:49]} 6. Re1 {[%clk 0:03:00]}  b5 {[%clk 0:02:49]} 7. Bb3 {[%clk 0:03:00]}  O-O {[%clk 0:02:49]} 8. c3 {[%clk 0:03:00]}  d5 {[%clk 0:02:49]} 9. exd5 {[%clk 0:03:01]}  Nxd5 {[%clk 0:02:49]} 10. Nxe5 {[%clk 0:03:01]}  Nxe5 {[%clk 0:02:49]} 11. Rxe5 {[%clk 0:03:02]}  c6 {[%clk 0:02:50]} 12. d4 {[%clk 0:02:47]}  Bd6 {[%clk 0:02:49]} 13. Re1 {[%clk 0:02:47]}  Qh4 {[%clk 0:02:48]} 14. g3 {[%clk 0:02:47]}  Qh3 {[%clk 0:02:48]} 15. Qf3 {[%clk 0:02:47]}  Bg4 {[%clk 0:02:43]} 16. Qg2 {[%clk 0:02:47]}  Qh5 {[%clk 0:02:13]} 17. Bxd5 {[%clk 0:02:45]}  cxd5 {[%clk 0:02:07]} 18. Be3 {[%clk 0:02:41]}  Bf3 {[%clk 0:01:29]} 19. Qf1 {[%clk 0:02:39]}  f5 {[%clk 0:01:26]} 20. Nd2 {[%clk 0:02:34]}  f4 {[%clk 0:01:24]} 21. Bxf4 {[%clk 0:02:02]}  Rxf4 {[%clk 0:01:05]} 22. Nxf3 {[%clk 0:01:58]}  Rxf3 {[%clk 0:01:02]} 23. Re6 {[%clk 0:01:45]}  Rd8 {[%clk 0:00:41]} 24. Qe2 {[%clk 0:01:37]}  Qf5 {[%clk 0:00:36]} 25. Re1 {[%clk 0:01:25]}  h5 {[%clk 0:00:15]} 26. Re8+ {[%clk 0:01:06]}  Rxe8 {[%clk 0:00:15]} 27. Qxe8+ {[%clk 0:01:07]}  Kh7 {[%clk 0:00:14]} 28. Re2 {[%clk 0:01:06]}  h4 {[%clk 0:00:12]} 29. Kg2 {[%clk 0:00:47]}  h3+ {[%clk 0:00:11]} 30. Kf1 {[%clk 0:00:42]}  b4 {[%clk 0:00:10]} 31. Qd8 {[%clk 0:00:26]}  Bf8 {[%clk 0:00:02]} 32. Qh4+ {[%clk 0:00:25]}  Kg8 {[%clk 0:00:03]} 33. cxb4 {[%clk 0:00:21]}  Qb1+ {[%clk 0:00:02]} 34. Re1 {[%clk 0:00:21]}  Qd3+ {[%clk 0:00:02]} 35. Kg1 {[%clk 0:00:21]}  Rf5 {[%clk 0:00:03]} 36. Qxh3 {[%clk 0:00:18]}  Qf3 {[%clk 0:00:03]} 37. Qg2 {[%clk 0:00:13]}  Qxg2+ {[%clk 0:00:03]} 38. Kxg2 {[%clk 0:00:14]}  Bxb4 {[%clk 0:00:04]} 39. Re6 {[%clk 0:00:13]}  Rf6 {[%clk 0:00:04]} 40. Re5 {[%clk 0:00:12]}  Rd6 {[%clk 0:00:03]} 41. a3 {[%clk 0:00:12]}  Bd2 {[%clk 0:00:03]} 42. Re2 {[%clk 0:00:12]}  Bc1 {[%clk 0:00:03]} 43. f4 {[%clk 0:00:09]}  Rb6 {[%clk 0:00:02]} 44. Rc2 {[%clk 0:00:04]}  Bxb2 {[%clk 0:00:01]} 45. a4 {[%clk 0:00:04]}  Bxd4 {[%clk 0:00:01]} 46. Kf3 {[%clk 0:00:05]}  Rb4 {[%clk 0:00:01]} 47. Kg4 {[%clk 0:00:06]}  Rxa4 {[%clk 0:00:00]} 48. Rc8+ {[%clk 0:00:06]} 1-0

[Event "January 2 Late 2024"]
[Site "https://www.chess.com"]
[Date "2024.01.02"]
[Round "10"]
[White "th3d4rkness"]
[Black "Romero Ruscalleda, Josep"]
[Result "1-0"]
[Board "134"]
[TimeControl "180+1"]
[BlackFideId "2231859"]
[WhiteElo "2166"]
[BlackElo "2303"]
[BlackTeam "ESP"]
[WhiteClock "0:00:22"]
[BlackClock "0:00:06"]

1. d4 {[%clk 0:03:00]}  g6 {[%clk 0:03:00]} 2. c4 {[%clk 0:02:59]}  Bg7 {[%clk 0:03:01]} 3. Nc3 {[%clk 0:03:00]}  d6 {[%clk 0:03:01]} 4. e4 {[%clk 0:02:59]}  Nc6 {[%clk 0:03:02]} 5. Be3 {[%clk 0:02:58]}  e5 {[%clk 0:03:02]} 6. d5 {[%clk 0:02:57]}  Nce7 {[%clk 0:03:02]} 7. Qd2 {[%clk 0:02:55]}  f5 {[%clk 0:03:02]} 8. f3 {[%clk 0:02:55]}  Nf6 {[%clk 0:03:01]} 9. Bd3 {[%clk 0:02:53]}  O-O {[%clk 0:02:52]} 10. Nge2 {[%clk 0:02:51]}  fxe4 {[%clk 0:02:50]} 11. fxe4 {[%clk 0:02:45]}  Ng4 {[%clk 0:02:49]} 12. O-O-O {[%clk 0:02:37]}  Nf2 {[%clk 0:02:40]} 13. Bxf2 {[%clk 0:02:31]}  Rxf2 {[%clk 0:02:40]} 14. g3 {[%clk 0:02:20]}  Qf8 {[%clk 0:02:38]} 15. Kb1 {[%clk 0:02:17]}  a6 {[%clk 0:02:37]} 16. Qe1 {[%clk 0:02:00]}  Bh3 {[%clk 0:02:33]} 17. Nf4 {[%clk 0:01:51]}  Rxb2+ {[%clk 0:02:11]} 18. Kxb2 {[%clk 0:01:47]}  exf4 {[%clk 0:02:11]} 19. gxf4 {[%clk 0:01:39]}  Qxf4 {[%clk 0:02:10]} 20. Qd2 {[%clk 0:01:35]}  Qe5 {[%clk 0:02:07]} 21. Kc2 {[%clk 0:01:29]}  b5 {[%clk 0:02:06]} 22. cxb5 {[%clk 0:01:28]}  axb5 {[%clk 0:02:06]} 23. Rb1 {[%clk 0:01:25]}  Ra3 {[%clk 0:01:40]} 24. Rb3 {[%clk 0:01:22]}  Rxb3 {[%clk 0:01:33]} 25. Kxb3 {[%clk 0:01:18]}  b4 {[%clk 0:01:10]} 26. Nb5 {[%clk 0:01:16]}  c6 {[%clk 0:01:04]} 27. dxc6 {[%clk 0:01:11]}  Nxc6 {[%clk 0:01:04]} 28. Bc4+ {[%clk 0:01:11]}  Kh8 {[%clk 0:01:03]} 29. Bd5 {[%clk 0:00:59]}  Be6 {[%clk 0:00:50]} 30. Bxe6 {[%clk 0:00:54]}  Qxe6+ {[%clk 0:00:50]} 31. Qd5 {[%clk 0:00:54]}  Qh3+ {[%clk 0:00:46]} 32. Ka4 {[%clk 0:00:42]}  Qc8 {[%clk 0:00:34]} 33. Kb3 {[%clk 0:00:30]}  Nd4+ {[%clk 0:00:20]} 34. Nxd4 {[%clk 0:00:29]}  Qc3+ {[%clk 0:00:20]} 35. Ka4 {[%clk 0:00:27]}  Bxd4 {[%clk 0:00:20]} 36. Rf1 {[%clk 0:00:21]}  Qa3+ {[%clk 0:00:17]} 37. Kb5 {[%clk 0:00:21]}  Qd3+ {[%clk 0:00:14]} 38. Kxb4 {[%clk 0:00:17]}  Qxf1 {[%clk 0:00:13]} 39. Qxd4+ {[%clk 0:00:18]}  Kg8 {[%clk 0:00:13]} 40. Qd5+ {[%clk 0:00:18]}  Kg7 {[%clk 0:00:11]} 41. Qxd6 {[%clk 0:00:18]}  Qe1+ {[%clk 0:00:11]} 42. Kc4 {[%clk 0:00:15]}  Qxe4+ {[%clk 0:00:11]} 43. Qd4+ {[%clk 0:00:15]}  Qxd4+ {[%clk 0:00:11]} 44. Kxd4 {[%clk 0:00:16]}  Kf7 {[%clk 0:00:11]} 45. a4 {[%clk 0:00:16]}  Ke7 {[%clk 0:00:12]} 46. Ke5 {[%clk 0:00:17]}  h6 {[%clk 0:00:09]} 47. a5 {[%clk 0:00:17]}  Kd7 {[%clk 0:00:09]} 48. a6 {[%clk 0:00:17]}  Kc7 {[%clk 0:00:09]} 49. Kf6 {[%clk 0:00:17]}  g5 {[%clk 0:00:09]} 50. Kg6 {[%clk 0:00:18]}  g4 {[%clk 0:00:10]} 51. Kxh6 {[%clk 0:00:17]}  Kb6 {[%clk 0:00:11]} 52. Kg5 {[%clk 0:00:18]}  Kxa6 {[%clk 0:00:11]} 53. Kxg4 {[%clk 0:00:18]}  Kb7 {[%clk 0:00:12]} 54. Kf5 {[%clk 0:00:19]}  Kc8 {[%clk 0:00:13]} 55. Kf6 {[%clk 0:00:20]}  Kd8 {[%clk 0:00:13]} 56. Kf7 {[%clk 0:00:20]}  Kd7 {[%clk 0:00:13]} 57. h4 {[%clk 0:00:21]}  Kd6 {[%clk 0:00:14]} 58. h5 {[%clk 0:00:21]}  Ke5 {[%clk 0:00:15]} 59. h6 {[%clk 0:00:22]}  Kf5 {[%clk 0:00:06]} 60. h7 {[%clk 0:00:22]} 1-0

[Event "January 2 Late 2024"]
[Site "https://www.chess.com"]
[Date "2024.01.02"]
[Round "10"]
[White "Reinecke, Katharina"]
[Black "Doublekk14"]
[Result "0-1"]
[Board "137"]
[TimeControl "180+1"]
[WhiteFideId "12929727"]
[WhiteElo "2033"]
[BlackElo "2242"]
[WhiteTeam "GER"]
[WhiteClock "0:00:05"]
[BlackClock "0:00:11"]

1. d4 {[%clk 0:03:00]}  Nf6 {[%clk 0:02:58]} 2. c4 {[%clk 0:03:00]}  e6 {[%clk 0:02:57]} 3. Nf3 {[%clk 0:03:00]}  d5 {[%clk 0:02:57]} 4. g3 {[%clk 0:02:59]}  c5 {[%clk 0:02:57]} 5. cxd5 {[%clk 0:02:58]}  exd5 {[%clk 0:02:56]} 6. Bg2 {[%clk 0:02:58]}  Nc6 {[%clk 0:02:50]} 7. O-O {[%clk 0:02:55]}  Be7 {[%clk 0:02:11]} 8. dxc5 {[%clk 0:02:53]}  Bxc5 {[%clk 0:02:06]} 9. a3 {[%clk 0:02:53]}  O-O {[%clk 0:01:54]} 10. b4 {[%clk 0:02:52]}  Bb6 {[%clk 0:01:50]} 11. Bb2 {[%clk 0:02:49]}  Be6 {[%clk 0:01:47]} 12. e3 {[%clk 0:02:48]}  Ne4 {[%clk 0:01:44]} 13. Nbd2 {[%clk 0:02:43]}  f5 {[%clk 0:01:39]} 14. Rc1 {[%clk 0:02:41]}  a6 {[%clk 0:01:32]} 15. Nb3 {[%clk 0:02:38]}  Nd6 {[%clk 0:01:19]} 16. Nc5 {[%clk 0:02:15]}  Bxc5 {[%clk 0:01:09]} 17. bxc5 {[%clk 0:02:09]}  Nc4 {[%clk 0:01:09]} 18. Qc2 {[%clk 0:01:56]}  Qe7 {[%clk 0:00:53]} 19. Nd4 {[%clk 0:01:49]}  Nxd4 {[%clk 0:00:47]} 20. exd4 {[%clk 0:01:46]}  f4 {[%clk 0:00:46]} 21. Rce1 {[%clk 0:01:40]}  Qf6 {[%clk 0:00:39]} 22. Bc1 {[%clk 0:00:48]}  f3 {[%clk 0:00:36]} 23. Bh1 {[%clk 0:00:46]}  Bh3 {[%clk 0:00:35]} 24. Be3 {[%clk 0:00:28]}  Bxf1 {[%clk 0:00:31]} 25. Kxf1 {[%clk 0:00:28]}  Rae8 {[%clk 0:00:20]} 26. Qd3 {[%clk 0:00:23]}  Nxe3+ {[%clk 0:00:17]} 27. Rxe3 {[%clk 0:00:19]}  Rxe3 {[%clk 0:00:12]} 28. Qxe3 {[%clk 0:00:19]}  Qf5 {[%clk 0:00:13]} 29. Ke1 {[%clk 0:00:11]}  h5 {[%clk 0:00:08]} 30. Kd2 {[%clk 0:00:10]}  Rf6 {[%clk 0:00:07]} 31. Qe7 {[%clk 0:00:08]}  Kh7 {[%clk 0:00:06]} 32. Qxb7 {[%clk 0:00:07]}  Re6 {[%clk 0:00:06]} 33. Qb2 {[%clk 0:00:03]}  Re2+ {[%clk 0:00:06]} 34. Kc3 {[%clk 0:00:03]}  Rxb2 {[%clk 0:00:06]} 35. Kxb2 {[%clk 0:00:04]}  Qe4 {[%clk 0:00:06]} 36. Kc3 {[%clk 0:00:04]}  Qe1+ {[%clk 0:00:07]} 37. Kd3 {[%clk 0:00:02]}  Qxh1 {[%clk 0:00:08]} 38. Ke3 {[%clk 0:00:02]}  Qxh2 {[%clk 0:00:09]} 39. Kxf3 {[%clk 0:00:03]}  Qg2+ {[%clk 0:00:10]} 40. Kf4 {[%clk 0:00:03]}  Qxf2+ {[%clk 0:00:08]} 41. Kg5 {[%clk 0:00:04]}  Qf6+ {[%clk 0:00:07]} 42. Kxh5 {[%clk 0:00:01]}  Qf5+ {[%clk 0:00:07]} 43. Kh4 {[%clk 0:00:01]}  Qe4+ {[%clk 0:00:08]} 44. g4 {[%clk 0:00:02]}  Qxd4 {[%clk 0:00:09]} 45. Kg5 {[%clk 0:00:02]}  Qxc5 {[%clk 0:00:09]} 46. a4 {[%clk 0:00:02]}  Qa3 {[%clk 0:00:10]} 47. a5 {[%clk 0:00:03]}  Qxa5 {[%clk 0:00:10]} 48. Kh4 {[%clk 0:00:03]}  Qc5 {[%clk 0:00:11]} 49. g5 {[%clk 0:00:04]}  d4 {[%clk 0:00:11]} 50. g6+ {[%clk 0:00:04]}  Kxg6 {[%clk 0:00:10]} 51. Kg4 {[%clk 0:00:05]}  Qf5+ {[%clk 0:00:09]} 52. Kg3 {[%clk 0:00:05]}  d3 {[%clk 0:00:10]} 53. Kg2 {[%clk 0:00:05]}  d2 {[%clk 0:00:11]} 54. Kg3 {[%clk 0:00:05]}  d1=Q {[%clk 0:00:11]} 55. Kg2 {[%clk 0:00:06]}  Qdf1+ {[%clk 0:00:12]} 56. Kg3 {[%clk 0:00:05]}  Q5f3+ {[%clk 0:00:12]} 57. Kh4 {[%clk 0:00:05]}  Q1h3# {[%clk 0:00:11]} 0-1